bitfinex/quotes_ETHUSD_20250814
["timestamp","ask_amount","ask_price","bid_price","bid_amount"]
[1755213718480,0.002,4563.8,4563.7,2.1912045]
[1755213718658,0.002,4563.8,4563.7,5.6718045]
[1755213719275,0.4921,4563.8,4563.7,5.6718045]
[1755213720438,0.4921,4563.8,4563.7,2.3008045]
[1755213720740,0.4921,4563.8,4563.7,5.6718045]
[1755213721684,0.9511,4563.8,4563.7,5.6718045]
[1755213721981,0.002,4563.8,4563.7,6.31710976]
[1755213722184,0.9491,4564.5,4564.4,2.19086846]
[1755213722486,0.9491,4564.5,4564.4,3.37]
[1755213722687,0.9491,4564.5,4564.4,5.56086846]
[1755213722838,0.9491,4564.5,4564.4,3.371]
[1755213723033,3.13992046,4564.5,4564.4,3.371]
[1755213723358,0.9491,4564.5,4564.4,3.371]
[1755213724849,0.9491,4564.5,4562.7,0.55]
[1755213724850,0.9491,4564.5,4561.8,0.4362]
[1755213725059,0.9491,4564.4,4562.3,0.658376]
[1755213725241,0.9491,4564.3,4563.3,3.372]
[1755213725441,0.4901,4564.3,4563.4,0.55]
[1755213725756,0.4901,4564.3,4564.2,2.19096446]
[1755213725959,0.4901,4564.3,4564.2,5.56596446]
[1755213727359,0.9491,4564.3,4564.2,3.374]
[1755213729275,0.9491,4564.3,4564.2,5.56496446]
[1755213729678,0.9491,4564.3,4563.8,0.65833]
[1755213729840,0.9491,4564.2,4563.9,3.373]
[1755213730176,2.19054951,4565.1,4563.9,2.19110101]
[1755213730177,0.9491,4564.1,4563.9,2.19110101]
[1755213730362,11.3264306,4564.7,4564.0,3.372]
[1755213730562,5.19054072,4565.1,4564.0,3.372]
[1755213730751,5.66300016,4565.1,4564.0,3.372]
[1755213731095,0.9491,4565.0,4564.0,3.372]
[1755213731392,0.9491,4564.9,4564.0,3.372]
[1755213731539,2.19059404,4565.0,4564.1,2.19097617]
[1755213731739,0.9491,4564.8,4564.1,2.19097617]
[1755213732238,2.19043714,4565.3,4564.7,0.1096]
[1755213732239,0.1096,4565.3,4564.7,0.1096]
[1755213732484,0.1096,4565.3,4564.8,3.373]
[1755213732785,0.002,4565.5,4565.4,2.19038857]
[1755213732944,0.002,4565.5,4565.4,5.57338857]
[1755213733859,0.002,4565.5,4565.4,6.00858857]
[1755213734264,0.002,4565.5,4565.4,6.12338857]
[1755213734967,0.002,4565.5,4564.9,2.67520887]
[1755213734968,0.002,4565.5,4565.3,2.19042966]
[1755213735136,0.002,4565.5,4565.4,3.383]
[1755213735340,0.461,4565.5,4565.4,5.57338857]
[1755213735567,0.002,4565.5,4565.4,5.57338857]
[1755213737275,0.002,4565.5,4565.4,6.12338857]
[1755213737477,0.002,4565.5,4565.4,5.57138857]
[1755213738258,0.002,4565.5,4565.4,6.00658857]
[1755213738578,0.002,4565.5,4565.4,6.49118857]
[1755213738870,0.002,4565.5,4565.4,6.00658857]
[1755213739075,0.002,4565.5,4565.4,6.82629395]
[1755213739662,0.002,4565.5,4565.4,7.37629395]
[1755213741669,0.002,4565.5,4565.4,7.37259395]
[1755213742777,0.002,4565.5,4565.4,7.48219395]
[1755213744776,0.1096,4566.6,4565.4,7.48219395]
[1755213744777,2.18964274,4567.0,4565.9,2.19012174]
[1755213744964,0.1096,4566.6,4566.0,3.382]
[1755213745160,0.1096,4566.6,4566.0,5.68169225]
[1755213745379,0.1096,4566.6,4566.0,3.4916]
[1755213745877,0.1096,4566.6,4566.0,5.68169899]
[1755213746994,0.1096,4566.6,4566.1,2.19004912]
[1755213747285,0.1096,4566.6,4566.2,3.382]
[1755213748090,0.4812,4566.5,4566.2,3.382]
[1755213748287,0.5067,4566.6,4566.2,3.382]
[1755213748288,0.1096,4566.6,4566.2,3.382]
[1755213750881,0.1096,4566.9,4566.4,2.18986273]
[1755213751187,0.1096,4566.9,4566.5,3.377]
[1755213751572,0.1096,4566.9,4566.5,5.56685785]
[1755213751769,0.1096,4566.9,4566.5,3.377]
[1755213753700,0.1096,4566.9,4566.5,3.8085]
[1755213753875,0.4832,4567.6,4566.6,0.4315]
[1755213754066,0.4832,4567.6,4566.7,3.377]
[1755213754067,0.3971,4567.5,4566.7,3.377]
[1755213754372,2.67063081,4567.4,4566.8,3.377]
[1755213754568,0.8783,4567.3,4566.9,3.377]
[1755213754773,0.8783,4567.3,4567.0,3.377]
[1755213754991,0.8783,4567.2,4567.0,3.377]
[1755213755196,0.4812,4567.2,4567.0,3.377]
[1755213755501,2.18943915,4567.4,4567.0,3.377]
[1755213755502,0.4812,4567.1,4567.0,3.377]
[1755213755698,0.8783,4567.1,4567.0,3.377]
[1755213755907,0.8783,4567.1,4567.0,3.376]
[1755213756993,0.8783,4567.1,4566.1,0.65804]
[1755213757189,11.3264306,4566.3,4564.7,0.4315]
[1755213757391,30.8783,4567.0,4564.8,3.376]
[1755213757392,11.3264306,4565.7,4564.8,3.376]
[1755213757575,2.19029262,4565.6,4564.9,3.376]
[1755213757777,2.67149262,4565.6,4565.0,3.376]
[1755213758067,0.4812,4565.6,4565.0,3.376]
[1755213758394,2.19034391,4565.5,4565.1,3.375]
[1755213758603,0.3971,4565.5,4565.2,3.375]
[1755213758773,3.4812,4566.2,4565.2,3.375]
[1755213758967,2.19011342,4566.0,4565.2,3.375]
[1755213759172,2.19026535,4565.7,4565.2,3.375]
[1755213759593,2.19026535,4565.7,4564.9,0.4315]
[1755213759799,0.3971,4566.1,4565.0,3.374]
[1755213760071,2.18987239,4566.5,4565.2,2.19048453]
[1755213760271,0.4812,4566.5,4565.3,0.4315]
[1755213760501,3.0,4566.4,4565.3,0.4315]
[1755213760803,2.67107587,4566.5,4565.4,2.19035054]
[1755213760982,2.67107587,4566.5,4565.5,5.56533891]
[1755213762276,2.18991583,4566.4,4565.5,3.375]
[1755213762512,3.0,4566.3,4564.8,2.19064982]
[1755213762714,13.51662749,4565.8,4564.9,5.56462667]
[1755213762877,3.3971,4566.2,4564.9,3.374]
[1755213763077,3.8783,4566.2,4565.0,0.4315]
[1755213763277,3.8783,4566.2,4565.1,3.374]
[1755213764008,0.4812,4566.5,4565.2,0.9066]
[1755213764182,0.95306412,4567.0,4565.3,0.45340436]
[1755213764382,0.1096,4566.7,4566.0,2.29969042]
[1755213764582,0.1096,4566.7,4566.1,3.374]
[1755213764784,0.1096,4566.7,4566.1,3.8055]
[1755213765808,0.1096,4566.7,4566.1,5.99555071]
[1755213766479,0.1096,4566.7,4566.1,3.8055]
[1755213767295,0.1096,4566.7,4566.1,0.4315]
[1755213767500,0.1096,4566.7,4566.2,3.373]
[1755213768009,0.3971,4567.1,4566.3,3.372]
[1755213768010,11.3264306,4566.4,4566.3,3.372]
[1755213768211,13.51634918,4566.4,4566.3,3.372]
[1755213768408,14.50424918,4566.4,4566.3,3.372]
[1755213769109,14.50424918,4566.4,4566.2,3.372]
[1755213769110,2.18995685,4566.3,4566.2,3.372]
[1755213769320,13.51634624,4566.4,4566.2,3.372]
[1755213769481,13.51634624,4566.4,4565.4,0.5411]
[1755213769482,2.18995824,4566.3,4565.4,0.5411]
[1755213769681,2.18995824,4566.3,4565.5,3.372]
[1755213770083,0.1096,4566.3,4565.5,3.372]
[1755213770307,0.1096,4566.3,4565.5,5.56232742]
[1755213770515,0.1096,4566.3,4565.6,0.4315]
[1755213771085,2.29956667,4566.3,4565.6,0.4315]
[1755213773114,2.29956667,4566.3,4565.7,3.37]
[1755213773620,0.1096,4566.3,4565.7,3.37]
[1755213774314,0.1096,4566.3,4565.6,2.62177688]
[1755213774519,0.1096,4566.3,4565.8,3.369]
[1755213774881,0.1096,4566.3,4565.9,0.4699]
[1755213775319,0.1096,4566.3,4566.0,3.368]
[1755213775485,3.002,4566.9,4566.0,3.368]
[1755213775486,0.002,4566.9,4566.0,3.368]
[1755213775686,2.18975234,4566.8,4566.1,0.4699]
[1755213775917,2.18977034,4566.7,4566.1,0.4699]
[1755213776335,0.1096,4566.6,4566.1,0.4699]
[1755213776616,2.29941616,4566.6,4566.2,3.368]
[1755213776816,0.1096,4566.6,4566.2,3.368]
[1755213777120,14.3284306,4566.9,4566.3,3.368]
[1755213777315,2.29950889,4566.4,4566.3,3.368]
[1755213779318,2.19011692,4566.0,4565.5,0.4699]
[1755213779614,0.1096,4566.0,4565.6,3.367]
[1755213779818,0.1096,4566.0,4565.7,0.4699]
[1755213780413,0.1096,4566.0,4565.6,3.367]
[1755213780615,0.1096,4566.0,4565.3,4.8295]
[1755213780793,11.3264306,4566.4,4565.1,0.001]
[1755213780994,0.1096,4565.7,4565.2,3.367]
[1755213781184,0.1096,4565.7,4565.3,0.4699]
[1755213781385,0.1096,4565.7,4565.4,0.4699]
[1755213782590,0.1096,4565.7,4565.5,3.367]
[1755213783223,0.1096,4565.7,4565.5,3.8369]
[1755213784100,0.1096,4565.7,4565.5,3.367]
[1755213785004,0.1096,4565.7,4565.5,3.8369]
[1755213785909,0.1096,4565.7,4565.5,4.495123]
[1755213786107,0.1096,4565.7,4565.5,0.659223]
[1755213786311,0.1096,4565.7,4565.6,3.367]
[1755213786515,0.47200809,4566.5,4565.6,4.3152]
[1755213786713,0.1096,4566.1,4565.7,0.4699]
[1755213786913,0.1096,4566.1,4565.8,0.4783]
[1755213787426,0.1096,4566.1,4565.9,0.9482]
[1755213787634,0.1096,4566.5,4566.0,3.367]
[1755213787931,0.1096,4566.5,4566.1,3.13824253]
[1755213788432,0.1096,4566.5,4566.2,0.9482]
[1755213788809,0.1096,4566.5,4566.3,0.9482]
[1755213789033,0.1096,4566.5,4566.4,3.367]
[1755213789436,0.1096,4566.5,4566.4,4.3152]
[1755213790008,0.1096,4566.5,4566.4,3.8369]
[1755213790430,0.1096,4566.5,4566.4,4.3152]
[1755213790623,0.002,4566.9,4566.4,4.3152]
[1755213790825,0.1096,4566.7,4566.5,0.9482]
[1755213791021,0.1096,4566.7,4566.5,0.4783]
[1755213791355,0.002,4566.9,4566.6,0.9482]
[1755213791636,0.002,4566.9,4566.7,3.367]
[1755213791836,0.002,4566.9,4566.7,4.3152]
[1755213792016,0.002,4566.9,4566.8,0.4699]
[1755213793637,0.002,4566.9,4566.8,4.18120708]
[1755213793805,0.002,4566.9,4566.8,1.99149]
[1755213794136,0.002,4566.9,4566.8,4.18120708]
[1755213794323,0.002,4566.9,4566.8,7.54920708]
[1755213794727,0.002,4566.9,4566.8,4.80949]
[1755213794907,0.002,4566.9,4566.8,4.4258]
[1755213795103,0.002,4566.9,4566.8,1.0578]
[1755213795438,0.002,4566.9,4566.8,6.61551708]
[1755213796312,0.002,4566.9,4566.8,7.16551708]
[1755213797621,0.002,4566.9,4566.8,4.9758]
[1755213797826,0.002,4566.9,4566.8,7.16551708]
[1755213800050,0.002,4566.9,4566.8,0.1096]
[1755213800365,0.002,4566.9,4566.8,3.4766]
[1755213800517,0.002,4566.9,4566.8,6.50491708]
[1755213800859,0.002,4566.9,4566.8,7.16451708]
[1755213803956,0.002,4566.9,4566.8,6.68821708]
[1755213804115,0.002,4566.9,4566.8,0.5795]
[1755213804318,0.002,4566.9,4566.8,3.4806]
[1755213805320,11.3264306,4567.5,4566.8,0.1096]
[1755213805516,0.1096,4567.1,4566.9,3.371]
[1755213805746,0.1096,4567.1,4567.0,3.37]
[1755213807351,0.1096,4567.1,4566.5,2.73264379]
[1755213807655,0.1096,4567.1,4566.6,3.368]
[1755213808322,0.1096,4567.1,4566.6,3.8012]
[1755213809149,2.29918254,4567.1,4566.6,3.8012]
[1755213809350,0.47231208,4567.1,4566.7,3.368]
[1755213809540,0.47231208,4567.1,4566.5,0.1096]
[1755213809541,2.18962119,4567.0,4566.5,0.1096]
[1755213809742,2.77498266,4567.1,4566.6,3.367]
[1755213810058,2.29918266,4567.1,4566.6,3.367]
[1755213810353,0.1096,4567.1,4566.6,3.367]
[1755213810582,2.2991967,4567.1,4566.6,3.367]
[1755213810779,2.18962366,4567.0,4566.6,3.367]
[1755213810926,0.1096,4567.1,4566.6,3.8002]
[1755213810927,2.29918625,4567.1,4566.6,3.8002]
[1755213811845,2.18962493,4567.0,4566.6,3.8002]
[1755213812552,2.29917433,4567.1,4566.6,3.8002]
[1755213812760,2.29917433,4567.1,4566.7,3.366]
[1755213814331,0.1096,4567.1,4566.7,3.366]
[1755213815547,0.1096,4567.1,4566.8,3.366]
[1755213815854,2.18995323,4566.4,4565.6,2.19025041]
[1755213816055,2.18995323,4566.4,4565.1,0.001]
[1755213816056,2.18971708,4566.8,4565.9,2.19014039]
[1755213816373,3.0,4566.9,4566.0,3.366]
[1755213816525,2.18971708,4566.8,4566.0,3.366]
[1755213816954,2.1898847,4566.5,4566.0,3.366]
[1755213817851,2.18992186,4566.4,4566.0,3.366]
[1755213818052,2.18977169,4566.7,4566.0,3.366]
[1755213818256,2.18991556,4566.4,4566.0,3.366]
[1755213818456,2.18991556,4566.4,4565.7,0.4332]
[1755213818758,2.18991556,4566.4,4565.8,3.366]
[1755213818921,0.5,4566.0,4565.8,3.366]
[1755213819126,0.5,4566.0,4565.9,0.4332]
[1755213821452,0.5,4566.0,4565.9,0.9017]
[1755213822134,2.1897265,4566.8,4565.9,0.9017]
[1755213822464,2.18986563,4566.5,4565.9,0.9017]
[1755213822662,2.18986563,4566.5,4565.7,2.19023098]
[1755213822867,2.18986563,4566.5,4565.8,3.366]
[1755213823064,2.18986563,4566.5,4565.8,5.55618248]
[1755213823362,2.18977927,4566.7,4565.9,2.19012748]
[1755213823567,2.18977927,4566.7,4565.9,2.62332748]
[1755213823763,2.18982025,4566.6,4565.9,0.4332]
[1755213824463,2.18987105,4566.5,4565.9,0.4332]
[1755213824664,2.18992282,4566.4,4565.9,0.4332]
[1755213824874,2.1898677,4566.5,4565.9,0.4332]
[1755213825941,0.1096,4566.3,4565.9,0.4332]
[1755213826550,0.1096,4566.3,4565.7,2.29983488]
[1755213826850,0.1096,4566.3,4565.9,0.4332]
[1755213827045,0.1096,4566.3,4566.0,0.4332]
[1755213827246,0.1096,4566.3,4565.8,3.366]
[1755213827438,2.18948877,4567.3,4566.5,2.18985818]
[1755213827662,0.1096,4567.0,4566.6,4.2677]
[1755213827868,2.19119669,4567.9,4566.8,2.18971708]
[1755213828064,2.29898708,4567.5,4566.8,0.1096]
[1755213828677,13.62541348,4567.5,4566.9,3.366]
[1755213829053,2.18957396,4567.1,4566.6,0.1096]
[1755213829254,2.18960743,4567.1,4566.7,3.366]
[1755213829452,2.29913392,4567.2,4566.7,3.366]
[1755213829958,2.29913392,4567.2,4566.4,2.62310479]
[1755213830155,0.1096,4567.2,4566.5,5.55584058]
[1755213830355,0.1096,4567.2,4566.6,0.4332]
[1755213830777,0.1096,4567.2,4566.7,1.0185]
[1755213831090,0.002,4567.4,4566.8,4.3773]
[1755213831299,2.19144348,4567.4,4566.8,3.4756]
[1755213831588,11.3264306,4567.3,4566.9,3.366]
[1755213831761,0.1096,4567.1,4566.9,3.366]
[1755213832162,0.1096,4567.1,4566.5,0.1096]
[1755213832483,2.18986169,4566.5,4566.0,0.1096]
[1755213832687,11.4360306,4566.7,4566.0,0.1096]
[1755213832688,2.18982725,4566.6,4566.0,0.1096]
[1755213832897,0.1096,4566.7,4566.1,6.48690656]
[1755213833097,0.1096,4566.7,4566.1,4.2969]
[1755213833910,0.1096,4566.7,4566.1,0.9309]
[1755213834100,0.1096,4566.7,4566.0,0.1096]
[1755213834284,11.3264306,4566.4,4565.5,0.4682]
[1755213834490,11.3264306,4566.4,4565.6,3.366]
[1755213834491,13.51638186,4566.4,4565.6,3.366]
[1755213834889,2.18996263,4566.3,4565.7,0.4672]
[1755213836470,3.0,4566.8,4565.7,2.657424]
[1755213836677,2.18991312,4566.4,4565.8,0.4672]
[1755213836972,3.002,4567.4,4566.3,2.18994692]
[1755213837202,3.0,4567.3,4566.4,6.48680437]
[1755213837403,3.47410942,4567.4,4566.5,3.8332]
[1755213837608,0.47410942,4567.4,4566.5,3.8332]
[1755213837818,2.19143206,4567.4,4566.5,3.8332]
[1755213838019,2.18957456,4567.1,4566.5,3.8332]
[1755213839074,2.1895139,4567.3,4566.5,3.8332]
[1755213839272,2.18953212,4567.2,4566.5,6.02306003]
[1755213839474,2.18953212,4567.2,4566.5,3.8332]
[1755213839700,2.18959087,4567.1,4566.5,3.8332]
[1755213839906,2.18963044,4567.0,4566.5,3.8332]
[1755213840077,2.18963044,4567.0,4566.5,3.366]
[1755213840271,2.18948297,4567.3,4566.6,0.4672]
[1755213840487,2.18952987,4567.2,4566.6,0.4672]
[1755213840694,2.18970968,4566.9,4566.6,0.4672]
[1755213841535,2.18963386,4567.0,4566.6,0.4672]
[1755213842073,0.002,4567.4,4566.6,0.55]
[1755213842317,0.002,4567.4,4566.7,3.12066503]
[1755213842478,2.18947826,4567.3,4566.7,0.9309]
[1755213842836,0.002,4567.4,4566.7,0.9309]
[1755213843020,0.002,4567.4,4566.8,2.65688288]
[1755213843326,0.002,4567.4,4566.9,3.366]
[1755213843730,0.002,4567.4,4567.0,0.9309]
[1755213844037,0.002,4567.4,4567.0,0.4672]
[1755213844209,2.29908956,4567.3,4567.0,0.4672]
[1755213845228,2.29908956,4567.3,4566.9,3.366]
[1755213845428,0.1096,4567.3,4566.9,3.366]
[1755213845596,0.1096,4567.3,4567.0,0.4672]
[1755213847447,0.002,4567.4,4567.1,0.4672]
[1755213847945,0.002,4567.4,4567.3,0.1096]
[1755213848314,0.002,4567.4,4567.1,3.366]
[1755213848718,2.18947737,4567.3,4567.0,3.366]
[1755213849250,2.19143718,4567.4,4567.0,3.366]
[1755213849417,2.1894904,4567.3,4567.0,3.366]
[1755213849801,2.19143595,4567.4,4567.0,3.366]
[1755213850133,2.18949145,4567.3,4567.0,3.366]
[1755213850341,2.18954287,4567.2,4567.0,3.366]
[1755213851219,2.18948291,4567.3,4567.0,3.366]
[1755213851961,2.18957325,4567.1,4567.0,3.366]
[1755213852271,0.1096,4567.1,4567.0,3.366]
[1755213852612,0.002,4567.4,4567.0,4.2969]
[1755213852918,0.1096,4567.3,4567.1,0.9309]
[1755213853261,0.1096,4567.3,4567.2,0.9309]
[1755213854075,0.002,4567.4,4567.2,0.9309]
[1755213854357,0.002,4567.4,4567.3,0.9309]
[1755213854562,0.002,4567.4,4567.3,1.4809]
[1755213854715,0.002,4567.4,4567.3,4.16602737]
[1755213855114,0.002,4567.4,4567.3,7.53202737]
[1755213855353,0.002,4567.4,4567.3,7.64162737]
[1755213857442,0.002,4567.4,4567.3,5.45215]
[1755213857661,0.002,4567.4,4567.3,1.1268]
[1755213857832,0.002,4567.4,4567.3,7.14497737]
[1755213858667,0.002,4567.4,4567.3,4.9555]
[1755213859477,0.002,4567.4,4567.3,7.14497737]
[1755213860467,0.002,4567.4,4567.3,6.68127737]
[1755213860982,0.002,4567.4,4567.3,4.4918]
[1755213861275,0.002,4567.4,4567.3,6.68127737]
[1755213861479,0.002,4567.4,4567.3,7.14497737]
[1755213862580,0.002,4567.4,4567.3,4.4918]
[1755213862879,0.002,4567.4,4567.3,4.0246]
[1755213863083,0.002,4567.4,4567.3,4.975]
[1755213863380,0.002,4567.4,4567.3,7.16447737]
[1755213865099,0.002,4567.4,4567.3,8.09988173]
[1755213865448,0.002,4567.4,4567.3,4.73488173]
[1755213865645,0.002,4567.4,4567.3,8.09988173]
[1755213866182,0.002,4567.4,4567.3,7.14948173]
[1755213866500,0.002,4567.4,4567.3,8.09988173]
[1755213867085,0.002,4567.4,4567.3,3.79947737]
[1755213867421,0.002,4567.4,4567.3,3.4746]
[1755213867579,0.002,4567.4,4567.3,3.365]
[1755213868283,0.002,4567.4,4567.3,4.8654]
[1755213868486,0.002,4567.4,4567.3,7.16447737]
[1755213868676,0.002,4567.4,4567.3,8.09988169]
[1755213869418,0.002,4567.4,4567.3,6.67617737]
[1755213870790,0.002,4567.4,4567.3,6.21407737]
[1755213871374,0.002,4567.4,4567.3,4.0236]
[1755213872708,0.002,4567.4,4567.3,7.16347737]
[1755213873481,0.002,4567.4,4567.3,6.67517737]
[1755213873676,0.002,4567.4,4567.3,7.16347737]
[1755213874182,0.002,4567.4,4567.3,8.09878238]
[1755213879718,0.002,4567.4,4567.3,12.34878238]
[1755213880412,0.002,4567.4,4567.3,8.09878238]
[1755213884687,0.002,4567.4,4567.3,7.14838238]
[1755213885011,0.002,4567.4,4567.3,6.21307737]
[1755213885207,0.002,4567.4,4567.3,2.84907737]
[1755213885409,0.002,4567.4,4567.3,6.21307737]
[1755213886210,0.002,4567.4,4567.3,7.16347737]
[1755213887293,0.002,4567.4,4567.3,11.41347737]
[1755213887592,0.002,4567.4,4567.3,12.77378238]
[1755213888711,0.002,4567.4,4567.3,12.28548238]
[1755213888893,0.002,4567.4,4567.3,8.92148238]
[1755213889089,0.002,4567.4,4567.3,12.28548238]
[1755213889316,0.002,4567.4,4567.3,12.77378238]
[1755213889493,0.002,4567.4,4567.3,11.82338238]
[1755213889819,0.002,4567.4,4567.3,12.77378238]
[1755213890925,0.002,4567.4,4567.3,11.82338238]
[1755213891127,0.002,4567.4,4567.3,12.28548238]
[1755213891429,0.002,4567.4,4567.3,12.77378238]
[1755213894245,0.002,4567.4,4567.3,12.28548238]
[1755213894531,0.002,4567.4,4567.3,12.76608238]
[1755213896061,0.002,4567.4,4567.3,8.03548238]
[1755213896216,0.002,4567.4,4567.3,12.76608238]
[1755213898468,0.002,4567.4,4567.3,18.02208238]
[1755213900250,0.002,4567.4,4567.3,14.65908238]
[1755213900453,0.002,4567.4,4567.3,15.71907737]
[1755213901555,0.002,4567.4,4567.3,12.35607737]
[1755213901850,0.002,4567.4,4567.3,15.71907737]
[1755213902158,0.002,4567.4,4567.3,12.35607737]
[1755213902452,0.002,4567.4,4567.3,15.71907737]
[1755213902849,0.002,4567.4,4567.3,12.35607737]
[1755213903067,0.002,4567.4,4567.3,15.71907737]
[1755213903274,0.002,4567.4,4567.3,0.1106]
[1755213903569,3.08292943,4567.4,4567.3,3.4736]
[1755213903965,3.08292943,4567.4,4567.3,0.001]
[1755213904793,2.18966914,4566.9,4566.8,0.001]
[1755213905133,6.08116914,4566.9,4566.8,0.001]
[1755213905486,6.55382248,4566.9,4566.8,0.001]
[1755213905779,2.1898366,4566.6,4566.3,1e-08]
[1755213906084,20.59549328,4566.4,4566.3,1e-08]
[1755213906236,51.37623494,4566.4,4566.3,1e-08]
[1755213906432,52.26773494,4566.4,4566.3,1e-08]
[1755213908377,52.26773494,4566.4,4565.3,0.001]
[1755213908378,2.19010074,4566.0,4565.9,1e-08]
[1755213908676,35.78379575,4566.0,4565.9,1e-08]
[1755213908836,2.19029262,4565.6,4565.3,0.001]
[1755213909149,5.19043655,4565.3,4562.3,0.4567]
[1755213909358,5.19043655,4565.3,4562.0,0.4567]
[1755213909359,2.19091646,4564.3,4562.0,0.4567]
[1755213909539,2.19115649,4563.8,4562.2,3.363]
[1755213909888,2.19158868,4562.9,4561.8,0.001]
[1755213910040,50.59717307,4562.9,4561.8,0.001]
[1755213910239,51.79476139,4562.9,4561.8,0.001]
[1755213910477,5.19158868,4562.9,4561.9,0.4567]
[1755213910643,6.08108868,4562.9,4561.8,0.001]
[1755213911851,5.19158868,4562.9,4561.8,0.4577]
[1755213912039,5.19158868,4562.9,4561.8,0.001]
[1755213912040,2.19178082,4562.5,4561.8,0.001]
[1755213912436,6.37733164,4562.5,4561.8,0.001]
[1755213912640,2.19206909,4561.9,4561.8,0.001]
[1755213912964,35.46965575,4561.9,4561.8,0.001]
[1755213913161,36.35915575,4561.9,4561.8,0.001]
[1755213913491,2.19226131,4561.5,4561.3,1e-08]
[1755213913671,2.19235744,4561.3,4558.7,0.11458115]
[1755213913842,2.19235744,4561.3,4556.7,2.19453575]
[1755213913843,3.0,4560.7,4557.8,0.4567]
[1755213914042,0.1096,4558.7,4557.2,0.4567]
[1755213914294,0.4944,4558.6,4558.3,0.087868]
[1755213914437,2.19341536,4559.1,4557.7,0.4567]
[1755213914638,0.1096,4558.3,4557.7,0.4567]
[1755213914849,0.1096,4558.3,4557.9,2.19398604]
[1755213915053,0.1096,4558.3,4557.7,0.1096]
[1755213915252,0.1096,4558.3,4557.8,0.9373]
[1755213915454,0.1096,4558.3,4558.2,2.19384844]
[1755213915864,0.3951,4559.6,4558.2,0.9373]
[1755213916069,0.1096,4558.8,4558.2,0.5663]
[1755213916449,1.14223791,4560.0,4559.5,2.19319546]
[1755213916643,1.14223791,4560.0,4559.9,2.74303054]
[1755213916943,0.4944,4561.4,4560.0,0.55]
[1755213917171,0.4944,4561.4,4559.5,5.57420283]
[1755213917172,30.3951,4561.3,4559.6,0.55]
[1755213917368,2.19269012,4560.7,4559.6,0.55]
[1755213917690,2.46984279,4561.6,4559.0,0.55]
[1755213917691,30.0,4560.6,4559.0,0.55]
[1755213917844,6.8754,4560.6,4559.4,2.19326287]
[1755213918046,32.19275486,4560.5,4559.5,0.55]
[1755213918259,0.3951,4561.3,4559.5,1.0067]
[1755213918466,0.3951,4561.3,4556.7,37.82358395]
[1755213918467,3.0,4561.1,4559.7,2.74312674]
[1755213918782,2.19245939,4561.1,4560.0,2.19297063]
[1755213918990,2.19255067,4560.9,4559.9,0.55]
[1755213919188,5.19240683,4561.2,4560.1,0.55]
[1755213919490,2.19245897,4561.1,4560.1,0.55]
[1755213919778,3.0,4561.0,4559.9,0.55]
[1755213919984,30.0,4560.9,4559.1,0.4567]
[1755213920147,2.19283742,4560.4,4559.2,0.55]
[1755213920352,3.0,4560.8,4559.2,0.55]
[1755213920578,3.0,4560.6,4559.4,0.55]
[1755213920854,3.383,4561.3,4559.6,0.55]
[1755213921055,3.389,4561.4,4560.1,0.55]
[1755213921251,2.19241536,4561.2,4560.2,0.55]
[1755213921488,2.19246674,4561.1,4560.2,0.55]
[1755213921991,3.4514,4561.2,4560.2,0.55]
[1755213922190,3.4514,4561.2,4559.3,3.383]
[1755213922191,0.8465,4561.0,4559.8,0.55]
[1755213922398,2.19245357,4561.1,4559.8,0.55]
[1755213922595,5.19250772,4561.0,4560.0,0.55]
[1755213922965,0.4514,4562.3,4560.7,0.55]
[1755213923289,0.4514,4562.9,4560.9,0.55]
[1755213923461,0.4514,4562.9,4560.8,0.9026]
[1755213923462,2.19174055,4562.6,4561.6,0.55]
[1755213923662,0.4514,4562.8,4561.1,0.55]
[1755213923867,2.1917117,4562.7,4561.8,0.55]
[1755213924266,2.1917353,4562.6,4561.7,0.55]
[1755213925057,3.25744495,4562.5,4561.7,0.55]
[1755213925257,1.06565493,4562.5,4561.7,0.55]
[1755213925657,1.06565493,4562.5,4561.7,0.4588]
[1755213925856,5.19164531,4562.8,4561.8,3.18591714]
[1755213926387,0.1096,4562.3,4561.8,0.9938]
[1755213926591,0.1096,4562.3,4561.9,0.4438]
[1755213927904,0.1096,4562.3,4562.1,0.55]
[1755213928100,0.1096,4562.5,4562.1,0.55]
[1755213930217,5.58362092,4562.9,4562.3,0.55]
[1755213930218,0.1096,4562.9,4562.3,0.55]
[1755213930417,2.64250782,4564.0,4562.9,2.19157853]
[1755213930418,2.30080491,4563.7,4562.9,2.19157853]
[1755213930616,2.30080491,4563.7,4563.1,0.55]
[1755213930617,0.1096,4563.7,4563.1,0.55]
[1755213930964,0.1096,4563.7,4563.3,0.55]
[1755213931166,0.1096,4563.7,4563.2,0.55]
[1755213931702,0.1096,4563.7,4563.4,0.55]
[1755213931868,2.30082537,4563.7,4563.4,0.55]
[1755213932372,0.002,4563.5,4563.4,0.55]
[1755213932581,0.002,4563.5,4562.9,0.55]
[1755213932904,0.002,4563.5,4563.4,0.9938]
[1755213933499,0.002,4563.5,4563.4,0.55]
[1755213933864,0.002,4563.5,4563.4,0.9938]
[1755213934668,0.002,4563.5,4563.4,3.64394855]
[1755213936274,0.4514,4565.6,4564.9,0.55]
[1755213936275,3.88796053,4565.5,4564.9,0.55]
[1755213936608,2.19056868,4565.1,4564.3,0.55]